Cogmind - Beta 11.1 @@@ ROGUE MODE // 2022.11.09 @ 00:42:22 Player: Crud Result: Destroyed by Tracker with Linked Autogun Performance ------------- Evolutions (7) 3500 Regions Visited (16) 3200 Robots Destroyed (104) 520 Value Destroyed (3653) 3653 Prototype IDs (218) 4360 Alien Tech Used (2) 400 Bonus (4305) 4305 TOTAL SCORE: 19938 Bonus ------- High Alert Combat Kills 205 Met Data Miner 300 Used Data Conduit 3000 Met Zhirov 300 Pursued by Intercept 500 Cogmind --------- Core Integrity 0/1300 Matter 290/300 Energy 80/100 System Corruption 2% Temperature Cool (0) Movement Core (150) Ox2 Location -3/Research Parts ------- > --- POWER (2) -------- (None) > --- PROPULSION (6) --- (None) > --- UTILITY (10) ----- Terrain Scan Processor Graphene Brace > --- WEAPON (3) ------- Compact Mass Driver > --- INVENTORY (5) ---- Light Antimatter Reactor Advanced Heavy Treads Energy Well (350) Peak State ------------ > --- POWER ------------ Heavy Antimatter Reactor > --- PROPULSION ------- Advanced Myomer Leg Advanced Myomer Leg Advanced Myomer Leg > --- UTILITY ---------- Advanced Energy Well Terrain Scan Processor Improved Target Analyzer Precision Matter Filter Advanced Transmission Jammer Experimental Utility Shielding System Shield Advanced System Shield > --- WEAPON ----------- Great Axe > --- INVENTORY -------- Light Antimatter Reactor Advanced Thermal Generator Matter Filter Graphene Brace [Rating: 82] Favorites ----------- Power Light Deuterium Engine Engine Light Deuterium Engine Power Core Fission Core Reactor Antimatter Reactor Propulsion VTOL Module Treads Light Treads Leg Carbon-fiber Leg Wheel Wheel Hover Unit Antigrav System Flight Unit VTOL Module Utility Medium Storage Unit Device Advanced Weight Redist. System Storage Medium Storage Unit Processor Improved Target Analyzer Hackware System Shield Protection Improved Light Armor Plating Weapon Improved Assault Rifle Energy Gun Tesla Rifle Energy Cannon Long-range Proton Cannon Ballistic Gun Improved Assault Rifle Ballistic Cannon Compact Mass Driver Launcher Scatter Rocket Array Special Weapon Molecular Deconstructor Slashing Weapon Great Axe Special Melee Weapon Improved Datajack Build | -11 -10 -9 -8 -7 -6 -6 -6 -6 -5 -5 -4 -4 -4 -4 -3 -3 ------- Run | Scr Mat Mat Mat Fac Fac Low Low Dat Pro Fac Fac Upp Upp Zhi Pro Res Slots Evolved 14 | . . 2 2 2 2 . . . . 2 2 . . . . 2 Power 1 | . . . . . . . . . . 1 . . . . . . Propulsion 4 | . . 2 . . 1 . . . . . 1 . . . . . Utility 8 | . . . 1 2 1 . . . . 1 1 . . . . 2 Weapon 1 | . . . 1 . . . . . . . . . . . . . Parts Attached 163 | 4 10 27 11 4 21 . 23 1 3 1 30 1 1 10 1 15 Power 15 | . . 3 2 . 1 . 1 . 1 . 5 . . 1 . 1 Engine 7 | . . 3 2 . 1 . . . 1 . . . . . . . Core 3 | . . . . . . . 1 . . . 2 . . . . . Reactor 5 | . . . . . . . . . . . 3 . . 1 . 1 Propulsion 59 | 3 6 13 4 . 9 . 6 1 1 . 7 . . 3 1 5 Treads 14 | . 1 5 4 . 1 . 1 1 . . . . . . . 1 Leg 11 | . . . . . . . 5 . . . 1 . . 3 1 1 Wheel 9 | 3 3 . . . . . . . . . 3 . . . . . Hover 2 | . . . . . . . . . . . 2 . . . . . Flight 23 | . 2 8 . . 8 . . . 1 . 1 . . . . 3 Utility 43 | 1 1 3 2 3 5 . 5 . 1 . 11 . . 5 . 6 Device 23 | 1 . 1 1 2 4 . 1 . 1 . 6 . . 2 . 4 Storage 6 | . 1 2 . . . . 1 . . . . . . 1 . 1 Processor 4 | . . . . . . . 1 . . . 2 . . . . 1 Hackware 2 | . . . . . . . . . . . 1 . . 1 . . Protection 8 | . . . 1 1 1 . 2 . . . 2 . . 1 . . Artifact . | . . . . . . . . . . . . . . . . . Weapon 46 | . 3 8 3 1 6 . 11 . . 1 7 1 1 1 . 3 Energy Gun 18 | . 2 4 2 . 1 . 4 . . . 3 1 . . . 1 Energy Cannon 2 | . . . . . 1 . . . . 1 . . . . . . Ballistic Gun 8 | . 1 1 1 . 3 . 2 . . . . . . . . . Ballistic Cannon 2 | . . . . . . . . . . . . . . . . 2 Launcher 11 | . . 3 . 1 1 . 3 . . . 3 . . . . . Special Weapon 2 | . . . . . . . 2 . . . . . . . . . Impact Weapon . | . . . . . . . . . . . . . . . . . Slashing Weapon 2 | . . . . . . . . . . . 1 . . 1 . . Piercing Weapon . | . . . . . . . . . . . . . . . . . Special Melee Weapon 1 | . . . . . . . . . . . . . 1 . . . Unidentified Prototypes 9 | . . 2 . . 3 . 1 . . . . . . 3 . . Corrupted Parts 3 | . . . . . . . 2 . . . 1 . . . . . System Corruption 13 | . . . . . . . 5 . . . 8 . . . . . Parts Lost 72 | . 1 2 4 4 1 . 12 9 . 1 11 . 5 . 7 15 Power 7 | . . . 1 1 . . 1 1 . 1 . . 1 . 1 . Propulsion 26 | . 1 2 . 2 1 . 5 3 . . 3 . 1 . 2 6 Utility 25 | . . . 1 . . . 4 3 . . 4 . 2 . 3 8 Weapon 14 | . . . 2 1 . . 2 2 . . 4 . 1 . 1 1 Highest Loss Streak 9 | . 1 1 2 4 1 . 4 9 . 1 7 . 5 . 6 9 To Critical Strikes . | . . . . . . . . . . . . . . . . . Average Slot Usage (%) 67 | . 98 99 92 82 72 86 81 57 24 18 44 47 38 49 63 40 Engine 3 | . 14 11 7 4 3 6 . . 6 2 . . . . . . Core 1 | . . . . . . . 4 5 . . . 5 3 . . . Reactor 1 | . . . . . . . . . . . 4 . . 3 4 1 Treads 4 | . 1 1 30 24 5 . 1 . . . . . . . . 1 Leg 4 | . . . . . . . 18 11 . . . . . 9 13 2 Wheel 3 | . 23 . . . . . . . . . 4 . . . . . Flight 7 | . 2 42 5 . 18 33 4 . 6 5 1 5 3 . . 3 Device 13 | . 14 11 8 19 20 20 15 12 11 7 15 15 11 8 8 4 Storage 5 | . 14 11 9 7 6 6 7 6 . . . . . 3 5 3 Processor 3 | . . . . . . . 3 6 . . 3 10 10 10 10 11 Hackware 2 | . . . . . . . . . . . 1 5 5 8 10 8 Protection 3 | . . . 7 10 5 6 7 . . . 1 . . 2 4 . Energy Gun 6 | . 13 17 14 4 2 6 7 . . . 4 2 3 . . . Ballistic Gun 3 | . 14 3 8 7 6 6 3 5 . . . . . . . . Naked Turns . | . . . . . . . . . . . . . . . . . Heaviest Build 60 | 13 21 23 30 32 31 28 47 32 12 21 60 13 13 32 32 25 Greatest Support 90 | 26 26 29 88 88 40 29 72 42 14 14 31 13 13 90 90 50 Greatest Overweight (x) 7 | 4 2 2 1 . . . 1 1 . 1 3 . . 7 1 1 Average Overweight (x) . | . . . . . . . . . . . . . . . . . Largest Inventory Capacity 10 | 8 10 10 10 10 10 10 10 10 5 5 5 5 5 5 5 5 Average Capacity 7 | 8 9 9 10 10 10 10 10 9 5 5 5 5 5 5 5 5 Most Carried 10 | 8 10 10 10 8 10 10 10 9 4 5 5 5 5 5 5 5 Average Carried 6 | 6 8 9 8 7 9 10 9 8 2 3 4 4 5 4 4 3 Final Capacity 10 | 8 10 10 10 10 10 10 10 5 5 5 5 5 5 5 5 5 Final Carried 10 | 8 10 9 9 8 10 10 9 5 2 5 5 5 5 4 5 4 Class Distribution -------------------- 43% | Mutant 18% | Scavenger-Mutant 17% | Hacker-Mutant 12% | Sprinter 3% | Tank Dominant Class ---------------- Mutant | -10/Materials Sprinter | -9/Materials Tank | -8/Materials Scavenger-Mutant | -7/Factory Sprinter | -6/Factory Sprinter | -6/Lower Caves Scavenger-Mutant | -6/Lower Caves Mutant | -6/Data Miner Mutant | -5/Proximity Caves Mutant | -5/Factory Scavenger-Mutant | -4/Factory Scavenger-Mutant | -4/Upper Caves Scavenger-Mutant | -4/Upper Caves Hacker-Mutant | -4/Zhirov Hacker-Mutant | -3/Proximity Caves Hacker-Mutant | -3/Research Resources | -11 -10 -9 -8 -7 -6 -6 -6 -6 -5 -5 -4 -4 -4 -4 -3 -3 ----------- Run | Scr Mat Mat Mat Fac Fac Low Low Dat Pro Fac Fac Upp Upp Zhi Pro Res Matter Collected 2907 | 249 98 420 285 9 98 41 555 . 22 29 585 . 15 239 53 209 Remotely . | . . . . . . . . . . . . . . . . . Salvage Created 3890 | 92 313 625 807 91 98 12 699 . . . 723 . . 273 . 157 Parts 215 | 13 30 53 36 4 5 . 34 . . . 34 . . . . 6 Haulers Intercepted 1 | . . 1 . . . . . . . . . . . . . . Recyclers Shooed 5 | . . 1 1 2 . . . . . . 1 . . . . . Parts Field Recycled . | . . . . . . . . . . . . . . . . . Retrieved Matter . | . . . . . . . . . . . . . . . . . Parts Self-Destructed 18 | . . . . . . 3 10 . . . . 4 1 . . . Prevented 3 | . . . . . . . 2 . . . . . 1 . . . Kills | -11 -10 -9 -8 -7 -6 -6 -6 -6 -5 -5 -4 -4 -4 -4 -3 -3 ------- Run | Scr Mat Mat Mat Fac Fac Low Low Dat Pro Fac Fac Upp Upp Zhi Pro Res Combat Hostiles Destroyed 79 | . 11 16 11 4 1 . 21 . . . 11 . . . . 4 Guns 38 | . 11 7 9 1 1 . 7 . . . 2 . . . . . Cannons 4 | . . . . . . . . . . . . . . . . 4 AOE 34 | . . 9 1 3 . . 14 . . . 7 . . . . . Classes Destroyed 16 | 2 3 5 1 1 2 . 2 . . . . . . . . . Worker 5 | . . 2 1 1 . . . . . . 1 . . . . . Builder 4 | . . . 1 . . . . . . . 3 . . . . . Tunneler 3 | 2 . . . . . . . . . . 1 . . . . . Hauler 1 | . . 1 . . . . . . . . . . . . . . Recycler 5 | 1 . 1 2 . . . . . . . 1 . . . . . Mechanic 1 | . . . . . 1 . . . . . . . . . . . Operator 2 | . . 2 . . . . . . . . . . . . . . Watcher 4 | . 2 2 . . . . . . . . . . . . . . Swarmer 22 | . 6 6 . . . . 6 . . . 4 . . . . . Grunt 36 | . 5 7 7 3 . . 5 . . . 5 . . . . 4 Brawler 1 | . . 1 . . . . . . . . . . . . . . Duelist 2 | . . . . . . . 2 . . . . . . . . . Sentry 8 | . . 2 4 . . . 2 . . . . . . . . . Specialist 1 | . . . . . . . 1 . . . . . . . . . Hunter 2 | . . . . 1 . . 1 . . . . . . . . . Programmer 3 | . . . . . 1 . . . . . 2 . . . . . Decomposer 3 | . . . . . . 1 2 . . . . . . . . . Thug 1 | . . . . . . . 1 . . . . . . . . . Butcher 3 | . . . . . . . 3 . . . . . . . . . Best Kill Streak 8 | 1 3 7 3 5 1 . 8 . . . 6 . . . . 2 Combat Bots Only 8 | . 3 5 3 4 1 . 8 . . . 4 . . . . 2 Max Kills in Single Turn 7 | 1 1 7 2 1 1 1 4 . . . 3 . . . . 1 Gunslinging . | . . . . . . . . . . . . . . . . . Exploded 5 | . . 5 1 1 . . 4 . . . 3 . . . . . Melee . | . . . . . . . . . . . . . . . . . Uniques/NPCs Destroyed . | . . . . . . . . . . . . . . . . . Combat | -11 -10 -9 -8 -7 -6 -6 -6 -6 -5 -5 -4 -4 -4 -4 -3 -3 -------- Run | Scr Mat Mat Mat Fac Fac Low Low Dat Pro Fac Fac Upp Upp Zhi Pro Res Damage Taken 11237 | . 429 463 831 393 90 16 1528 745 98 453 1586 57 357 . 1695 2496 Core 3561 | . 113 131 32 33 31 . 262 360 30 335 242 . 137 . 553 1302 Absorbed by Shields 16 | . . . . . . . . . . . . . . . . 16 Redirected to Shielding 155 | . . . . . . . . . . . . . . . 155 . Regen/Repaired (Parts) 353 | . . . . . . . . . . . 353 . . . . . Core Remaining (%) 63 | 100 54 67 94 95 . . . . 19 66 . . . . 12 . Volleys Fired 240 | 9 39 40 33 10 9 1 33 . . 4 40 . . . . 22 Largest 3 | 2 2 2 3 3 1 2 3 . . 1 2 . . . . 1 Hottest 133 | 60 85 106 129 98 23 78 133 . . 81 125 . . . . 66 Shots Fired 414 | 18 75 73 76 20 9 2 67 . . 4 48 . . . . 22 Gun 356 | 18 75 62 76 12 9 2 58 . . . 44 . . . . . Cannon 26 | . . . . . . . . . . 4 . . . . . 22 Launcher 29 | . . 11 . 8 . . 6 . . . 4 . . . . . Special 3 | . . . . . . . 3 . . . . . . . . . Kinetic 147 | 9 39 9 24 10 9 1 24 . . . . . . . . 22 Thermal 93 | 9 36 25 23 . . . . . . . . . . . . . Explosive 29 | . . 11 . 8 . . 6 . . . 4 . . . . . Electromagnetic 142 | . . 28 29 2 . 1 34 . . 4 44 . . . . . Robot Hit Streak 13 | 7 12 4 13 5 13 3 7 . . 5 10 . . . . 11 Robot Miss Streak 9 | 4 5 5 2 2 . 2 6 . . 2 9 . . . . 1 Penetration Max 1 | . . . . . . . . . . . . . . . . 1 Secondary Targets 5 | . 1 . 2 . . . 2 . . . . . . . . . Max Gunslinging Chain 1 | . 1 . 1 . . . 1 . . . . . . . . . Shots Hit Robots 287 | 12 44 41 59 15 9 1 44 . . 2 34 . 1 4 1 20 Core Hits 271 | 5 22 31 31 16 5 2 95 1 . . 53 . . 2 . 8 Critical Kills . | . . . . . . . . . . . . . . . . . Critical Parts Destroyed . | . . . . . . . . . . . . . . . . . Critical Strikes 14 | . 2 1 3 . . . 1 . . . 1 . . . . 6 Burn 6 | . 2 1 3 . . . . . . . . . . . . . Blast 6 | . . . . . . . . . . . . . . . . 6 Corrupt 2 | . . . . . . . 1 . . . 1 . . . . . Melee Attacks 6 | . . . . . . . . . . . . . 1 4 1 . Impact . | . . . . . . . . . . . . . . . . . Slashing 5 | . . . . . . . . . . . . . . 4 1 . Piercing . | . . . . . . . . . . . . . . . . . Sneak Attacks 1 | . . . . . . . . . . . . . 1 . . . Combat Hostiles . | . . . . . . . . . . . . . . . . . Follow-up Attacks . | . . . . . . . . . . . . . . . . . Damage Inflicted 10185 | 115 538 1658 1128 747 143 15 2496 1 . 183 1845 . . 359 36 921 Guns 3873 | 115 538 710 1027 156 143 15 701 . . . 468 . . . . . Cannons 1036 | . . . . . . . . . . 115 . . . . . 921 Explosions 4712 | . . 948 91 591 . . 1790 . . 68 1224 . . . . . Melee 395 | . . . . . . . . . . . . . . 359 36 . Ramming 169 | . . . 10 . . . 5 1 . . 153 . . . . . Kinetic 2103 | 35 208 63 256 133 143 15 329 . . . . . . . . 921 Thermal 1225 | 80 330 276 342 . . . 129 . . 68 . . . . . . Explosive 4009 | . . 876 . 591 . . 1661 . . . 881 . . . . . Electromagnetic 2284 | . . 443 520 23 . . 372 . . 115 811 . . . . . Impact . | . . . . . . . . . . . . . . . . . Slashing 395 | . . . . . . . . . . . . . . 359 36 . Piercing . | . . . . . . . . . . . . . . . . . Highest Corruption 20 | . . 1 . . 1 1 6 6 6 . 20 20 20 20 20 2 Average Corruption 10 | . . 1 . . 1 1 4 6 6 . 11 20 20 20 20 2 Corruption Purged . | . . . . . . . . . . . . . . . . . Corruption Blocked . | . . . . . . . . . . . . . . . . . Effects 117 | . . 1 . . 1 2 22 4 2 . 28 4 9 15 29 . Message Errors 25 | . . . . . . 1 5 2 . . 9 . 2 2 4 . Matter Fused 33 | . . 1 . . . . 5 . 2 . 8 2 1 5 9 . Heat Flow Errors 12 | . . . . . 1 1 3 1 . . 1 . . 3 2 . Energy Discharges 12 | . . . . . . . 6 . . . 1 . . 3 2 . Parts Rejected 1 | . . . . . . . . . . . . . . . 1 . Data Loss (minor) 12 | . . . . . . . 2 . . . 1 2 2 1 4 . Data Loss (major) 7 | . . . . . . . 1 1 . . 2 . 1 1 1 . Alerts 1 | . . . . . . . . . . . . . . . 1 . Misdirections 14 | . . . . . . . . . . . 6 . 3 . 5 . Overload Shots . | . . . . . . . . . . . . . . . . . Overflow Damage 178 | . . 15 3 . . . 28 . . . 4 . . 127 . 1 Projectiles 1 | . . . . . . . . . . . . . . . . 1 Explosions 43 | . . 15 . . . . 28 . . . . . . . . . Melee 134 | . . . 3 . . . . . . . 4 . . 127 . . Knockbacks 13 | . . . 1 . . . . . . . 1 . . . . 11 Impact 2 | . . . 1 . . . . . . . 1 . . . . . Kinetic 10 | . . . . . . . . . . . . . . . . 10 Secondary 1 | . . . . . . . . . . . . . . . . 1 Self-Inflicted Damage 774 | . . 57 39 188 . . 283 . . 62 145 . . . . . Shots 25 | . . 2 1 7 . . 10 . . 1 4 . . . . . Rammed 27 | . . . 3 . . . . . . . 24 . . . . . Targets Rammed 29 | . . . 3 . . . 1 1 . . 24 . . . . . Kicked 2 | . . . . . . . 1 1 . . . . . . . . Crushed . | . . . . . . . . . . . . . . . . . Highest Temperature 508 | 40 156 282 508 . 264 181 232 179 9 104 288 . . 263 246 56 Average Temperature 106 | 15 45 92 214 . 139 68 80 95 9 63 108 . . 115 101 34 Received Heat Transfer 1761 | . 138 114 432 90 . . 159 . 45 162 132 18 45 . 166 260 Effects 16 | . . . 16 . . . . . . . . . . . . . Shutdowns 1 | . . . 1 . . . . . . . . . . . . . Energy Bleed 1 | . . . 1 . . . . . . . . . . . . . Interference 9 | . . . 9 . . . . . . . . . . . . . Matter Decay 2 | . . . 2 . . . . . . . . . . . . . Short Circuit 1 | . . . 1 . . . . . . . . . . . . . Damage (minor) 2 | . . . 2 . . . . . . . . . . . . . Siege Activations . | . . . . . . . . . . . . . . . . . Robots Corrupted 4 | . . . 1 . . . . . . . 3 . . . . . Combat Hostiles 3 | . . . 1 . . . . . . . 2 . . . . . Parts Fried 11 | . . . 2 . . . . . . . 9 . . . . . Impact Corruptions 2 | . . . 1 . . . . . . . 1 . . . . . Robots Melted . | . . . . . . . . . . . . . . . . . Combat Hostiles . | . . . . . . . . . . . . . . . . . Parts Melted 5 | . 3 . 2 . . . . . . . . . . . . . Heat Transferred 2985 | 175 917 692 1001 . . . 150 . . 50 . . . . . . Parts Sabotaged . | . . . . . . . . . . . . . . . . . Parts Stolen . | . . . . . . . . . . . . . . . . . Parts Stripped . | . . . . . . . . . . . . . . . . . Power Chain Reactions 5 | . . 2 1 . . . 1 . . 1 . . . . . . Missiles Intercepted . | . . . . . . . . . . . . . . . . . Alert | -11 -10 -9 -8 -7 -6 -6 -6 -6 -5 -5 -4 -4 -4 -4 -3 -3 ------- Run | Scr Mat Mat Mat Fac Fac Low Low Dat Pro Fac Fac Upp Upp Zhi Pro Res Peak Influence 819 | 15 353 819 701 410 274 . . . . 338 539 . . . . 446 Initial 329 | . 9 95 329 235 200 . . . . 160 165 . . . . 3 Average 250 | 6 201 371 520 298 158 . . . . 245 197 . . . . 173 Maximum Alert Level 3 | . 1 3 3 2 1 . . . . 1 2 . . . . 2 Low Security (%) 43 | 100 39 40 . . 36 . . . . 8 76 . . . . 56 Level 1 38 | . 60 21 8 70 63 . . . . 91 15 . . . . 42 Level 2 15 | . . 15 83 29 . . . . . . 7 . . . . 1 Level 3 3 | . . 23 7 . . . . . . . . . . . . . Level 4 . | . . . . . . . . . . . . . . . . . Level 5 . | . . . . . . . . . . . . . . . . . High Security . | . . . . . . . . . . . . . . . . . Max Security . | . . . . . . . . . . . . . . . . . Squads Dispatched 29 | . 2 2 3 3 3 . 1 . 1 2 8 . . . 1 3 Investigation 13 | . 1 1 2 2 2 . . . . 1 4 . . . . . Extermination 4 | . . . . . 1 . . . . . 3 . . . . . Reinforcement 7 | . 1 1 1 1 . . . . . 1 1 . . . . 1 Assault 3 | . . . . . . . 1 . 1 . . . . . 1 . Garrison . | . . . . . . . . . . . . . . . . . Intercept 2 | . . . . . . . . . . . . . . . . 2 Searches Triggered 1 | . . . . . . . . . . . 1 . . . . . Construction Impeded 3 | . . . 1 1 . . . . . . 1 . . . . . Haulers Reinforced . | . . . . . . . . . . . . . . . . . Active Scanning Responses . | . . . . . . . . . . . . . . . . . Cargo Convoy Interrupts . | . . . . . . . . . . . . . . . . . Stealth | -11 -10 -9 -8 -7 -6 -6 -6 -6 -5 -5 -4 -4 -4 -4 -3 -3 --------- Run | Scr Mat Mat Mat Fac Fac Low Low Dat Pro Fac Fac Upp Upp Zhi Pro Res Distress Signals 5 | . 2 2 1 . . . . . . . . . . . . . Communications Jammed . | . . . . . . . . . . . . . . . . . Distress Signals . | . . . . . . . . . . . . . . . . . Times Spotted 250 | . 19 29 13 5 2 4 19 4 22 15 34 10 14 . 12 48 Peak Tracking Total 14 | . 5 8 4 4 1 3 5 4 14 7 14 6 9 . 6 14 Tactical Retreats 41 | . 2 2 2 . . 1 . . 3 5 4 2 4 . 4 12 Traps | -11 -10 -9 -8 -7 -6 -6 -6 -6 -5 -5 -4 -4 -4 -4 -3 -3 ------- Run | Scr Mat Mat Mat Fac Fac Low Low Dat Pro Fac Fac Upp Upp Zhi Pro Res Traps Triggered 5 | . . . 1 1 . . . . . . 1 . . . . 2 Indirectly . | . . . . . . . . . . . . . . . . . Trap Hack Attempts . | . . . . . . . . . . . . . . . . . Triggered . | . . . . . . . . . . . . . . . . . Disarmed . | . . . . . . . . . . . . . . . . . Reprogrammed . | . . . . . . . . . . . . . . . . . Reused . | . . . . . . . . . . . . . . . . . Traps Extracted . | . . . . . . . . . . . . . . . . . Installed . | . . . . . . . . . . . . . . . . . Triggered 2 | . . . . . . . . . . 1 . . 1 . . . Machines | -11 -10 -9 -8 -7 -6 -6 -6 -6 -5 -5 -4 -4 -4 -4 -3 -3 ---------- Run | Scr Mat Mat Mat Fac Fac Low Low Dat Pro Fac Fac Upp Upp Zhi Pro Res Machines Disabled 14 | . . 3 2 2 . . 2 . . . 5 . . . . . Max in Single Turn 3 | . . 1 1 2 . . 2 . . . 3 . . . . . Machines Sabotaged 1 | . . . . . . . . . . . 1 . . . . . Garrisons Compromised . | . . . . . . . . . . . . . . . . . Overloaded Fab Kills . | . . . . . . . . . . . . . . . . . Hacking | -11 -10 -9 -8 -7 -6 -6 -6 -6 -5 -5 -4 -4 -4 -4 -3 -3 --------- Run | Scr Mat Mat Mat Fac Fac Low Low Dat Pro Fac Fac Upp Upp Zhi Pro Res Machines Accessed 49 | . 5 3 5 1 5 . . 4 . 2 11 . . 9 . 4 Terminals 22 | . 4 2 3 1 3 . . . . . 6 . . . . 3 Fabricators 2 | . . . . . . . . . . 1 1 . . . . . Repair Stations 3 | . . . . . 1 . . . . . 2 . . . . . Recycling Units 8 | . 1 1 1 . 1 . . . . 1 2 . . . . 1 Scanalyzers 1 | . . . 1 . . . . . . . . . . . . . Garrison Access . | . . . . . . . . . . . . . . . . . Total Hacks 188 | . 21 15 18 3 11 . . 28 . 5 33 . . 44 . 10 Successful 140 | . 12 6 13 1 4 . . 28 . 2 22 . . 44 . 8 Failed 48 | . 9 9 5 2 7 . . . . 3 11 . . . . 2 Catastrophic 7 | . 2 1 . . 2 . . . . . 2 . . . . . Database Lockouts . | . . . . . . . . . . . . . . . . . Manual 59 | . 11 12 9 . 7 . 1 3 . . 13 . . . . 3 Terminals 73 | . 15 10 9 3 8 . . . . . 21 . . . . 7 Fabricators 4 | . . . . . . . . . . 2 2 . . . . . Repair Stations 5 | . . . . . 1 . . . . . 4 . . . . . Recycling Units 28 | . 6 5 3 . 2 . . . . 3 6 . . . . 3 Scanalyzers 6 | . . . 6 . . . . . . . . . . . . . Garrison Access . | . . . . . . . . . . . . . . . . . Terminal Hacks 93 | . 2 1 2 1 3 . . 28 . . 6 . . 44 . 6 Record 56 | . . . . 1 . . . 11 . . 4 . . 36 . 4 Part Schematic 13 | . . . . . . . . 9 . . . . . 4 . . Robot Schematic 5 | . . . . . . . . 5 . . . . . . . . Robot Analysis 2 | . . . . . 2 . . . . . . . . . . . Prototype ID Bank 9 | . 1 . 1 . . . . 3 . . . . . 4 . . Open DSF 4 | . . . . . 1 . . . . . 1 . . . . 2 Emergency Access Points 1 | . 1 . . . . . . . . . . . . . . . Dispatch Records 1 | . . 1 . . . . . . . . . . . . . . Zone Layout 2 | . . . 1 . . . . . . . 1 . . . . . Fabricator Hacks 3 | . . . . . . . . . . 1 2 . . . . . Load Schematic 2 | . . . . . . . . . . 1 1 . . . . . Build 1 | . . . . . . . . . . . 1 . . . . . Repair Station Hacks 4 | . . . . . . . . . . . 4 . . . . . Scan Component 2 | . . . . . . . . . . . 2 . . . . . Repair 2 | . . . . . . . . . . . 2 . . . . . Recycling Unit Hacks 11 | . 3 1 1 . . . . . . 1 5 . . . . . Recycle Component 3 | . . . . . . . . . . . 3 . . . . . Process 2 | . 1 . . . . . . . . . 1 . . . . . Report Inventory 2 | . . 1 1 . . . . . . . . . . . . . Retrieve Matter 3 | . 1 . . . . . . . . 1 1 . . . . . Retrieve Components 1 | . 1 . . . . . . . . . . . . . . . Scanalyzer 4 | . . . 4 . . . . . . . . . . . . . Insert Component 2 | . . . 2 . . . . . . . . . . . . . Analyze 2 | . . . 2 . . . . . . . . . . . . . Garrison Access Hacks . | . . . . . . . . . . . . . . . . . Unauthorized Hacks 25 | . 7 4 6 . 1 . . . . . 5 . . . . 2 Terminals 17 | . 5 2 4 . 1 . . . . . 5 . . . . . Track 5 | . 1 1 2 . . . . . . . 1 . . . . . Botnet 9 | . 4 1 1 . 1 . . . . . 2 . . . . . Operators 2 | . . . 1 . . . . . . . 1 . . . . . Sabotage 1 | . . . . . . . . . . . 1 . . . . . Fabricators . | . . . . . . . . . . . . . . . . . Repair Stations . | . . . . . . . . . . . . . . . . . Recycling Units 8 | . 2 2 2 . . . . . . . . . . . . 2 Monitor 4 | . 1 1 1 . . . . . . . . . . . . 1 Recyclers 4 | . 1 1 1 . . . . . . . . . . . . 1 Scanalyzers . | . . . . . . . . . . . . . . . . . Garrison Access . | . . . . . . . . . . . . . . . . . Data Cores Recovered 1 | . . 1 . . . . . . . . . . . . . . Used 1 | . . 1 . . . . . . . . . . . . . . Hacking Detections 27 | . 5 3 2 1 4 . . . . 2 8 . . . . 2 Full Trace Events 14 | . 3 2 2 1 2 . . . . 1 3 . . . . . Feedback Events . | . . . . . . . . . . . . . . . . . Feedback Blocked . | . . . . . . . . . . . . . . . . . Robot Schematics Acquired 5 | . . . . . . . . 5 . . . . . . . . Robots Built . | . . . . . . . . . . . . . . . . . Authchips . | . . . . . . . . . . . . . . . . . Time . | . . . . . . . . . . . . . . . . . Total Robot Build Rating . | . . . . . . . . . . . . . . . . . Part Schematics Acquired 15 | . . . 2 . . . . 9 . . . . . 4 . . Parts Built . | . . . . . . . . . . . . . . . . . Authchips . | . . . . . . . . . . . . . . . . . Time 128 | . . . . . . . . . . . 128 . . . . . Total Part Build Rating . | . . . . . . . . . . . . . . . . . Parts Repaired 2 | . . . . . . . . . . . 2 . . . . . Time 112 | . . . . . . . . . . . 112 . . . . . Parts Recycled 3 | . . . . . . . . . . . 3 . . . . . Recycled Matter 159 | . 138 . . . . . . . . . 21 . . . . . Retrieved Matter 138 | . 138 . . . . . . . . . . . . . . . Retrieved Components . | . . . . . . . . . . . . . . . . . Parts Scanalyzed 2 | . . . 2 . . . . . . . . . . . . . Part Schematics Acquired 2 | . . . 2 . . . . . . . . . . . . . Parts Damaged . | . . . . . . . . . . . . . . . . . Bothacking | -11 -10 -9 -8 -7 -6 -6 -6 -6 -5 -5 -4 -4 -4 -4 -3 -3 ------------ Run | Scr Mat Mat Mat Fac Fac Low Low Dat Pro Fac Fac Upp Upp Zhi Pro Res Used RIF Installer . | . . . . . . . . . . . . . . . . . Robots Hacked 1 | . . . . . . . . . . . . . 1 . . . Non-combat 1 | . . . . . . . . . . . . . 1 . . . Combat . | . . . . . . . . . . . . . . . . . Robot Hacks Applied 1 | . . . . . . . . . . . . . 1 . . . parse_system 1 | . . . . . . . . . . . . . 1 . . . Relay Couplers Released . | . . . . . . . . . . . . . . . . . Fabnet Peak Effective % . | . . . . . . . . . . . . . . . . . Robots Rewired . | . . . . . . . . . . . . . . . . . Allies Hacked . | . . . . . . . . . . . . . . . . . Hacks Repelled . | . . . . . . . . . . . . . . . . . Allies | -11 -10 -9 -8 -7 -6 -6 -6 -6 -5 -5 -4 -4 -4 -4 -3 -3 -------- Run | Scr Mat Mat Mat Fac Fac Low Low Dat Pro Fac Fac Upp Upp Zhi Pro Res Total Allies 3 | . . . . . . . . . . 3 . . . . . . Largest Group 3 | . . . . . . . . . . 3 . . . . . . Highest-Rated Group 93 | . . . . . . . . . . 93 . . . . . . Highest-Rated Ally 31 | . . . . . . . . . . 31 . . . . . . Total Orders . | . . . . . . . . . . . . . . . . . Ally Attacks 18 | . . . . . . . . . . 18 . . . . . . Total Damage 317 | . . . . . . . . . . 317 . . . . . . Kills 1 | . . . . . . . . . . 1 . . . . . . Allies Corrupted . | . . . . . . . . . . . . . . . . . Allies Melted . | . . . . . . . . . . . . . . . . . Intel | -11 -10 -9 -8 -7 -6 -6 -6 -6 -5 -5 -4 -4 -4 -4 -3 -3 ------- Run | Scr Mat Mat Mat Fac Fac Low Low Dat Pro Fac Fac Upp Upp Zhi Pro Res Robot Analysis Total 130 | . . . . . 2 . . 128 . . . . . . . . Derelict Logs Recovered 3 | . . . . . . 1 2 . . . . . . . . . Drone Launches . | . . . . . . . . . . . . . . . . . Drone Recoveries . | . . . . . . . . . . . . . . . . . Exploration | -11 -10 -9 -8 -7 -6 -6 -6 -6 -5 -5 -4 -4 -4 -4 -3 -3 ------------- Run | Scr Mat Mat Mat Fac Fac Low Low Dat Pro Fac Fac Upp Upp Zhi Pro Res Turns Passed 6791 | 95 668 439 530 187 627 142 907 178 150 205 1059 111 153 306 570 464 Spaces Moved 6302 | 53 409 399 250 76 593 236 535 101 349 324 815 268 354 340 498 702 Core 438 | 2 . 12 . . . . . 9 . . 13 . 83 194 51 74 Treads 435 | . 31 12 163 76 92 . 60 1 . . . . . . . . Legs 1291 | 32 . . . . . . 475 91 . . . . . 146 447 100 Wheels 585 | 19 372 . . . . . . . . . 194 . . . . . Hover 364 | . . . . . . . . . . . 364 . . . . . Flight 3189 | . 6 375 87 . 501 236 . . 349 324 244 268 271 . . 528 Fastest Speed 24 | 80 80 26 28 158 24 24 120 50 35 35 35 40 40 50 50 34 Average Speed 70 | 114 101 51 113 159 46 24 126 114 35 41 60 40 42 81 113 53 Slowest Speed 400 | 250 240 160 250 165 165 24 250 190 35 100 125 40 50 400 120 190 Overloaded Moves . | . . . . . . . . . . . . . . . . . Propulsion Burnouts . | . . . . . . . . . . . . . . . . . Robots Hopped 11 | . . 2 . . 2 . . . . 2 . . . . . 5 Cave-ins Triggered . | . . . . . . . . . . . . . . . . . Teleports 1 | . . . . . . . . . . . . . . 1 . . Exploration Rate (%) 39 | 3 55 46 28 3 13 44 61 77 52 10 18 59 55 62 72 21 Regions Visited 16 Branch Regions 8 Pre-discovered Areas 34 | . . . . . . . . 31 . . . . . 3 . . Known Exits Taken 1 | . . . . . . 1 . . . . . . . . . . Unknown Exits Taken 15 | 1 1 1 1 1 1 . 1 1 1 1 1 1 1 1 1 . Scrap Searched 10 | . . . . . . 2 5 . . . . . 1 . 2 . Spaces Dug . | . . . . . . . . . . . . . . . . . Terrain Destroyed 425 | . . 83 2 63 . . 163 . . 3 105 . . . . 6 Melee . | . . . . . . . . . . . . . . . . . Projectile 6 | . . . . . . . . . . . . . . . . 6 AOE 419 | . . 83 2 63 . . 163 . . 3 105 . . . . . Terrain Rammed . | . . . . . . . . . . . . . . . . . Walls Destroyed . | . . . . . . . . . . . . . . . . . Machines Disabled . | . . . . . . . . . . . . . . . . . Actions | -11 -10 -9 -8 -7 -6 -6 -6 -6 -5 -5 -4 -4 -4 -4 -3 -3 --------- Run | Scr Mat Mat Mat Fac Fac Low Low Dat Pro Fac Fac Upp Upp Zhi Pro Res Total 8208 | 70 597 556 431 124 932 318 689 162 376 390 1318 271 356 355 500 763 Wait 1296 | . 113 55 125 33 283 82 79 60 25 58 383 . . . . . Move 6264 | 52 408 394 249 75 588 235 534 100 348 319 814 267 353 339 497 692 Hop 11 | . . 2 . . 2 . . . . 2 . . . . . 5 Pick Up 88 | 2 12 20 7 1 12 . 10 . . 3 11 1 . . 1 8 Fast Attach 59 | 3 3 2 1 . 7 . 5 . . . 21 1 1 10 1 4 Attach 61 | . 3 5 5 3 9 . 11 1 3 1 8 . . 1 . 11 Detach 20 | . . 2 . 1 6 . 2 . . 2 4 . . . . 3 Swap 45 | 1 4 20 5 1 5 . 7 . . . 1 . . 1 . . Drop 67 | 3 15 16 3 . 11 . 7 . . 1 6 2 1 . . 2 Fire 240 | 9 39 40 33 10 9 1 33 . . 4 40 . . . . 22 Melee 6 | . . . . . . . . . . . . . 1 4 1 . Ram 24 | . . . . . . . . . . . 24 . . . . . Kick 2 | . . . . . . . 1 1 . . . . . . . . Crush 3 | . . . 3 . . . . . . . . . . . . . Escape Stasis 16 | . . . . . . . . . . . . . . . . 16 Rewire 6 | . . . . . . . . . . . 6 . . . . . Trap . | . . . . . . . . . . . . . . . . . Miscellaneous . | . . . . . . . . . . . . . . . . . Route ------- -11/Scrapyard -10/Materials -9/Materials (discovered 2 exits: *Mat x2) -8/Materials -7/Factory -6/Factory -6/Lower Caves -6/Lower Caves -6/Data Miner -5/Proximity Caves -5/Factory -4/Factory -4/Upper Caves -4/Upper Caves -4/Zhirov -3/Proximity Caves -3/Research History --------- Turn | Location | Event 1 | -11/Scrapyard | Discovered new exit (range 2) 96 | -11/Scrapyard | Entered Materials 309 | -10/Materials | Build established: Mutant 581 | -10/Materials | Discovered new exit (range 14) 764 | -10/Materials | Entered another Materials area 764 | -9/Materials | Evolved 2 slots: Propulsion x2 1048 | -9/Materials | Discovered new exit (range 4) 1183 | -9/Materials | Discovered new exit (range 10) 1203 | -9/Materials | Entered another Materials area 1203 | -8/Materials | Evolved 2 slots: Utility x1, Weapon x1 1234 | -8/Materials | Build established: Sprinter 1707 | -8/Materials | Discovered new exit (range 16) 1733 | -8/Materials | Entered Factory 1733 | -7/Factory | Evolved 2 slots: Utility x2 1836 | -7/Factory | Discovered new exit (range 7) 1890 | -7/Factory | Lost 4 parts (1p2n1w) 1920 | -7/Factory | Entered another Factory area 1920 | -6/Factory | Evolved 2 slots: Propulsion x1, Utility x1 2140 | -6/Factory | Build established: Mutant 2461 | -6/Factory | Build established: Sprinter 2474 | -6/Factory | Found Prototype Launcher 2474 | -6/Factory | Identified Scatter Rocket Array 2543 | -6/Factory | Discovered new exit (range 7) 2547 | -6/Factory | Entered Lower Caves 2554 | -6/Lower Caves | Encountered a Warlord checkpoint 2556 | -6/Lower Caves | Spotted B-75 Beast 2562 | -6/Lower Caves | Identified exit to Lower Caves 2689 | -6/Lower Caves | Entered another Lower Caves area 2691 | -6/Lower Caves | Attracted the attention of an 0b10 checkpoint 2777 | -6/Lower Caves | Learned Factory garrison access intel 2779 | -6/Lower Caves | Learned 4 Factory zone layouts 2790 | -6/Lower Caves | Ambushed by wild Derelicts 2839 | -6/Lower Caves | Lost 3 parts (1p1u1w) 3149 | -6/Lower Caves | Acquired the password to a Derelict Tinkerer's latest research 3156 | -6/Lower Caves | Found Prototype Special Weapon 3158 | -6/Lower Caves | Identified Molecular Deconstructor 3338 | -6/Lower Caves | Caught by Unaware searching for contraband prototypes 3345 | -6/Lower Caves | Attracted the attention of an 0b10 outpost 3388 | -6/Lower Caves | Destroyed 8 combat bots 3513 | -6/Lower Caves | Lost 4 parts (2n1u1w) 3579 | -6/Lower Caves | Discovered new exit (range 15) 3596 | -6/Lower Caves | Entered Data Miner 3596 | -6/Data Miner | Discovered new exit (range 6) 3669 | -6/Data Miner | Met Data Miner 3700 | -6/Data Miner | Learned location of Section 7 (-2) 3700 | -6/Data Miner | Acquired the access code to Warlord's prototype stash 3728 | -6/Data Miner | Received God Mode back door access code from Data Miner 3744 | -6/Data Miner | Interfaced with the Data Conduit 3767 | -6/Data Miner | Core integrity fell below 50% 3774 | -6/Data Miner | Entered Proximity Caves 3802 | -5/Proximity Caves | Lost 9 parts (1p3n3u2w) 3854 | -5/Proximity Caves | Attracted the attention of an 0b10 outpost 3913 | -5/Proximity Caves | Core integrity fell below 20% 3920 | -5/Proximity Caves | Discovered new exit (range 12) 3924 | -5/Proximity Caves | Entered Factory 3924 | -5/Factory | Evolved 2 slots: Power x1, Utility x1 3926 | -5/Factory | Loaded intel: 265 machine locations 3927 | -5/Factory | Loaded intel: 4 garrison access locations 4059 | -5/Factory | Build established: Mutant 4125 | -5/Factory | Discovered new exit (range 11) 4129 | -5/Factory | Entered another Factory area 4129 | -4/Factory | Evolved 2 slots: Propulsion x1, Utility x1 4130 | -4/Factory | Loaded intel: 295 machine locations 4217 | -4/Factory | Found Hvy. Reactive Plating 4477 | -4/Factory | Repaired Hvy. Reactive Plating 4630 | -4/Factory | Lost 3 parts (1n1u1w) 4745 | -4/Factory | Repaired Antimatter Reactor 4936 | -4/Factory | System corruption reached 10% 4958 | -4/Factory | Build established: Scavenger-Mutant 4958 | -4/Factory | Spotted B-86 Titan 5106 | -4/Factory | Spotted B-86 Titan 5156 | -4/Factory | Lost 7 parts (2n2u3w) 5175 | -4/Factory | Search patrols dispatched 5186 | -4/Factory | Discovered new exit (range 3) 5188 | -4/Factory | Entered Upper Caves 5190 | -4/Upper Caves | Attracted the attention of an 0b10 checkpoint 5214 | -4/Upper Caves | Encountered a Warlord checkpoint 5296 | -4/Upper Caves | Discovered new exit (range 7) 5299 | -4/Upper Caves | Entered another Upper Caves area 5442 | -4/Upper Caves | Lost 5 parts (1p1n2u1w) 5447 | -4/Upper Caves | Discovered new exit (range 10) 5452 | -4/Upper Caves | Entered Zhirov 5452 | -4/Zhirov | Discovered new exit (range 3) 5462 | -4/Zhirov | Met Zhirov 5484 | -4/Zhirov | Zhirov requested help retrieving the SGEMP Prototype 5504 | -4/Zhirov | Found Alien Artifact 5504 | -4/Zhirov | Identified Integrated Reactor 5504 | -4/Zhirov | Installed Integrated Reactor, increased core energy generation (+10) 5513 | -4/Zhirov | Found Alien Artifact 5513 | -4/Zhirov | Identified Transdimensional Reconstructor 5513 | -4/Zhirov | Warped through subspace 5758 | -4/Zhirov | Entered Proximity Caves 5850 | -3/Proximity Caves | Build established: Hacker-Mutant 6120 | -3/Proximity Caves | Attracted the attention of an 0b10 outpost 6131 | -3/Proximity Caves | Core integrity fell below 50% 6304 | -3/Proximity Caves | Lost 6 parts (1p2n3u) 6307 | -3/Proximity Caves | Core integrity fell below 20% 6323 | -3/Proximity Caves | Discovered new exit (range 11) 6328 | -3/Proximity Caves | Entered Research 6328 | -3/Research | Evolved 2 slots: Utility x2 6329 | -3/Research | Loaded intel: 103 machine locations 6553 | -3/Research | Lost 4 parts (3n1u) 6745 | -3/Research | Spotted B-86 Titan 6747 | -3/Research | Intercept squad dispatched 6760 | -3/Research | Spotted Tracker 6765 | -3/Research | Core integrity fell below 50% 6776 | -3/Research | Core integrity fell below 20% 6792 | -3/Research | Destroyed by Tracker with Linked Autogun Last Messages --------------- 06761_ Cld. Nuclear Pulse Thruster temporarily disabled. 06763_ Impulse Thruster temporarily disabled. 06767_ Impulse Thruster destroyed. 06769_ Core Analyzer destroyed. 06769_ Adv. Energy Well destroyed. 06770_ Penetrated by Slug. 06770_ Slug penetrates Wall. 06774_ Triggered Tesla Bomb Trap. 06774_ A bubble of electromagnetic force engulfs the area. 06774_ Tesla Bomb Trap short circuited. 06774_ A bubble of electromagnetic force engulfs the area. 06774_ Tesla Bomb Trap short circuited. 06774_ Cld. Nuclear Pulse Thruster destroyed. 06774_ K-01 Serf destroyed. 06774_ A bubble of electromagnetic force engulfs the area. 06775_ U-05 Engineer lays Concrete. 06778_ S-43 Plague destroyed. 06779_ U-05 Engineer lays Concrete. 06783_ Adv. System Shield destroyed. [Achievement: Achiever] Map ----- +----------------------------------------------------+ | "????????????????????????????????????????????????? | | "????????????????????????????????????????????????? | | ?????????????????????????????????????????????????? | | ?????????????????????????????????????????????????? | | ?????????????????????????????????????????????????? | | ?????????????????????????????????????????????????? | | ?????????????????????????????????????????????????? | | ???????????????????R?????????????????????????????? | | ?????????????????????????????????????????????????? | | ?????????????????????????????????????????????????? | | ??? ??????????????T??????????????????????????????? | | ??# ?????????#???????????????????????????????????? | | ??# ????????? #????????"""????????????????????? | | ??# ???????? #????????"""????????????????????? | | ??# ??????? #????????"""????????????????????? | | ??# ??????? +????????"""????????????????????? | | ??# ??????? #????????"""????????????????????? | | ??# ?????? ??? ?????????????????????????????? | | ??# ?????? ???? ?????????????????????????????? | | ?## ?????? ????? ???########??????????????????? | | ?#" ######/#####?? ???# #??????????????????? | | ?# ??? ???# #??????????????????? | | ?# #????? ???# #??????????????????? | | ?# #????? ???+ #??????????????????? | | ?# #????# #??# #??????????????????? | | ?# ###+#######?# #??# @ #??????????????????? | | ?# # #?# #??#s######??????????????????? | | ?# # #?# #?## ##??????????????????????? | | ?# R# #?# ###s #??????????????????????? | | ?# # """ #?# #??????????????????????? | | ?# # """ #?# ### #??????????????????????? | | ?# # """ ### ####/###?????????????????????? | | ?# # / / #?????????????????????? | | ?# %# ##### #?????????????????????? | | ?#= ###########???# #?????????????????????? | | ##% % #?????????????# !#?????????????????????? | | #?????????????# #?????????????????????? | | =#?????????????# #?????????????????????? | | ## %#?????????????########?????????????????????? | | ?# =#??????????????????????????????????????????? | | ?# #??????????????????????????????????????????? | | ?# #??????????????????????????????????????????? | | ?# #??????????????????????????????????????????? | | ?# #??????????????????????????????????????????? | | ?# #??????????????????????????????????????????? | | ?# #??????????????????????????????????????????? | | ?# #??????????????????????????????????????????? | | ?# #?????????????????????????????????????"""??? | | ?? #?????????????????????????????????????"""??? | | ?? ?????????????????????????????????????"""??? | +----------------------------------------------------+ Best States ------------- Heat Dissipation 64 Energy Generation 35 Energy Capacity 840 Matter Stores 300 Matter Capacity 300 Sight Range 16 Robot Scan Range 15 Terrain Scan Range 14 Terrain Scan Density 85 ECM Strength 1 Jamming Range 16 Power Amplification 20 Additional Mass Support 9 Armor Coverage 600 Resistance: KI 40 Utility Shielding 90 Evasion (%) 75 Targeting Accuracy 5 Target Analysis 6 Core Analysis 6 Recoil Reduction 12 Matter Filtering 50 Defensive Hacking 24 Item Schematics ----------------- Arm. Treads | -8/Materials | Scanalyzed Hvy. EM Shotgun | -8/Materials | Scanalyzed Combat Drone Bay | -6/Data Miner | Free Lgt. Regenerative Plating | -6/Data Miner | Free Enh. Flexi-carbon Leg | -6/Data Miner | Free Imp. Energy Well | -6/Data Miner | Free Tri-rail Accelerator | -6/Data Miner | Free Centrium Wheel | -6/Data Miner | Free Lrn. Sensor Array | -6/Data Miner | Free Dispersion Rifle | -6/Data Miner | Free Arm. Heavy Treads | -6/Data Miner | Free Assault Drone Bay | -4/Zhirov | Free Exp. Heat Sink | -4/Zhirov | Free Exp. Optical Array | -4/Zhirov | Free Imp. Arc Thrower | -4/Zhirov | Free Robot Schematics ------------------ G-50 Soldier | -6/Data Miner | Free H-66 Slayer | -6/Data Miner | Free B-60 Warrior | -6/Data Miner | Free Y-54 Guardian | -6/Data Miner | Free M-30 Cleanser | -6/Data Miner | Free Fabricated ------------ Nothing Alien Tech Used ----------------- Integrated Reactor Transdimensional Reconstructor Achievements -------------- Achiever Alien Tech Can't Catch Me Dangerous Findings Dodgeball, But With Guns I'm Back, Baby! Subspace Traveler The Science Guy Universal Adapter Unlimited Data Challenges ------------ None Game ------ Seed ZionitePointyLauncher Manual? 0 Play Time 02:32:56 Cumulative 34.2 hours Start 2022.11.08 @ 21:45:51 End 2022.11.09 @ 00:42:22 Sessions 1 Manual Loads 0 Difficulty Rogue Special Mode None Game No. 33 Rogue 33 Adventurer 0 Explorer 0 Win Type - Total 0 Types 0/0/0/0/0/0/0/0/0 Lore% 33 Gallery% 35 Achievement% 27 Wizard Run 0 Options --------- ASCII 0 Keyboard 0 Movement Mouse Keybinds 0 Fullscreen 1 Font 36/Smallcaps Map View 76x50 Tactical HUD 1 Map Filters NONE Filters NONE Steam 1 RUN: 1fc12e20-740d-4909-8e89-e28fcf3a589c